Cogmind - Beta 16.1 @@@ ROGUE MODE // 2026.04.14 @ 00:54:58 Player: skelll Result: Destroyed by D-53 Grenadier with Mini Grenade Launcher Performance ------------- Evolutions (0) 0 Regions Visited (2) 400 Robots Destroyed (15) 75 Value Destroyed (308) 308 Prototype IDs (0) 0 Alien Tech Used (0) 0 Bonus (85) 85 TOTAL SCORE: 868 Bonus ------- Follower Combat Kills 85 Cogmind --------- Core Integrity 0/250 Matter 300/300 Energy 100/100 System Corruption 0% Temperature Cool (0) Movement Core (350) Ox6 Location -10/Mines Parts ------- > --- POWER (1) -------- (None) > --- PROPULSION (2) --- (None) > --- UTILITY (2) ------ Large Storage Unit > --- WEAPON (2) ------- (None) > --- INVENTORY (15) --- Ion Engine Ion Engine Light Ion Engine Light Ion Engine Aluminum Leg Aluminum Leg Compact Wheel Compact Wheel Heat Sink Small Battery (100) Sensor Array ECM Suite Assault Rifle Datajack Hammer Peak State ------------ > --- POWER ------------ Light Nuclear Core > --- PROPULSION ------- Aluminum Leg Aluminum Leg > --- UTILITY ---------- Large Storage Unit Structural Scanner > --- WEAPON ----------- Medium Laser Assault Rifle > --- INVENTORY -------- Ion Engine Ion Engine Light Ion Engine Light Ion Engine Aluminum Leg Compact Wheel Compact Wheel Small Battery Sensor Array ECM Suite Assault Rifle Datajack Hammer [Rating: 10] Favorites ----------- Power Ion Engine Engine Ion Engine Power Core Light Nuclear Core Propulsion Aluminum Leg Leg Aluminum Leg Utility Large Storage Unit Device Structural Scanner Storage Large Storage Unit Weapon Assault Rifle Energy Gun Medium Laser Energy Cannon Beam Cannon Ballistic Gun Assault Rifle Impact Weapon Hammer Build | -11 -10 -10 ------- Run | Yrd Mat Min Slots Evolved . | . . . Power . | . . . Propulsion . | . . . Utility . | . . . Weapon . | . . . Parts Attached 19 | 7 7 5 Power 4 | 1 1 2 Engine 3 | 1 1 1 Core 1 | . . 1 Reactor . | . . . Propulsion 4 | 2 . 2 Treads . | . . . Leg 4 | 2 . 2 Wheel . | . . . Hover . | . . . Flight . | . . . Utility 4 | 1 3 . Device 1 | . 1 . Storage 3 | 1 2 . Processor . | . . . Hackware . | . . . Protection . | . . . Artifact . | . . . Weapon 7 | 3 3 1 Energy Gun 3 | 1 1 1 Energy Cannon 1 | . 1 . Ballistic Gun 2 | 2 . . Ballistic Cannon . | . . . Launcher . | . . . Special Weapon . | . . . Impact Weapon 1 | . 1 . Slashing Weapon . | . . . Piercing Weapon . | . . . Special Melee Weapon . | . . . Unidentified Prototypes . | . . . Parts Lost 9 | . 1 8 Power 2 | . . 2 Propulsion 2 | . . 2 Utility 1 | . . 1 Weapon 4 | . 1 3 Highest Loss Streak 6 | . 1 6 To Critical Strikes . | . . . Average Backups 10 | 1 10 13 Power 2 | . 2 3 Propulsion 2 | . 2 3 Utility 2 | . 1 3 Weapon 2 | . 2 2 Tool/Special . | . . . Unused Backups 10 | . . 10 Power 2 | . . 2 Propulsion 3 | . . 3 Utility 4 | . . 4 Weapon . | . . . Tool/Special 1 | . . 1 Average Slot Usage (%) 96 | . 95 97 Engine 11 | . 14 5 Core 2 | . . 7 Leg 28 | . 28 28 Device 11 | . 10 12 Storage 14 | . 14 14 Energy Gun 5 | . 1 14 Energy Cannon 4 | . 5 2 Ballistic Gun 15 | . 17 11 Impact Weapon 2 | . 3 . Peak Build Rating 10 | 6 8 10 Average Rating 7 | 4 7 8 On Entrance 4 | . 6 8 Avg Prop Armor Cover (%) . | . . . Naked Turns . | . . . Heaviest Build 31 | 14 31 30 Greatest Support 20 | 20 20 20 Greatest Overweight (x) 1 | . 1 1 Average Overweight (x) . | . . 1 Largest Inventory Capacity 15 | 8 15 15 Average Capacity 14 | 7 14 15 Most Carried 15 | 4 14 15 Average Carried 10 | 2 10 13 Final Capacity 15 | 8 15 15 Final Carried 15 | 4 13 15 Class Distribution -------------------- 100% | Mutant Dominant Class ---------------- Mutant | -10/Materials Mutant | -10/Mines Resources | -11 -10 -10 ----------- Run | Yrd Mat Min Matter Collected 472 | 253 96 123 Remotely . | . . . Salvage Created 346 | . 153 193 Parts 30 | . 14 16 Haulers Intercepted . | . . . Recyclers Shooed . | . . . Parts Field Recycled . | . . . Retrieved Matter . | . . . Parts Self-Destructed . | . . . Prevented . | . . . Parts Restored . | . . . Kills | -11 -10 -10 ------- Run | Yrd Mat Min Combat Hostiles Destroyed 14 | . 7 7 Melee 1 | . 1 . Guns 8 | . 1 7 Cannons 5 | . 5 . Classes Destroyed 4 | . 3 1 Watcher 1 | . 1 . Swarmer 9 | . 6 3 Grunt 4 | . 1 3 Demolisher 1 | . . 1 Best Kill Streak 4 | . 4 3 Combat Bots Only 4 | . 4 3 Max Kills in Single Turn 1 | . 1 1 Gunslinging . | . . . Exploded . | . . . Melee 1 | . 1 . Uniques/NPCs Destroyed . | . . . Combat | -11 -10 -10 -------- Run | Yrd Mat Min Hostile Shots Fired 121 | . 49 72 Missed 32 | . 11 21 Hits 89 | . 38 51 Projectile 89 | . 38 51 AOE 8 | . . 8 Damage Taken 1056 | . 324 732 Core 261 | . 86 175 Absorbed by Shields . | . . . Core Remaining (%) 100 | 100 . . Volleys Fired 40 | . 20 20 Largest 2 | . 2 2 Hottest 110 | . 100 110 Shots Fired 66 | . 26 40 Gun 47 | . 10 37 Cannon 19 | . 16 3 Launcher . | . . . Special . | . . . Kinetic 25 | . 8 17 Thermal 39 | . 16 23 Explosive . | . . . Electromagnetic 2 | . 2 . Robot Hit Streak 13 | . 5 13 Robot Miss Streak 5 | . 3 5 Penetration Max . | . . . Secondary Targets 2 | . . 2 Max Gunslinging Chain 1 | . . 1 Shots Hit Robots 43 | . 18 25 Core Hits 24 | . 9 15 Critical Kills . | . . . Critical Parts Destroyed . | . . . Critical Strikes 1 | . . 1 Burn 1 | . . 1 Melee Attacks 7 | . 7 . Impact 7 | . 7 . Slashing . | . . . Piercing . | . . . Sneak Attacks . | . . . Combat Hostiles . | . . . Follow-up Attacks . | . . . Damage Inflicted 611 | . 293 318 Guns 395 | . 94 301 Cannons 173 | . 156 17 Explosions . | . . . Melee 43 | . 43 . Ramming . | . . . Kinetic 249 | . 82 167 Thermal 307 | . 156 151 Explosive . | . . . Electromagnetic 12 | . 12 . Impact 43 | . 43 . Slashing . | . . . Piercing . | . . . Highest Corruption . | . . . Average Corruption . | . . . Corruption Purged . | . . . Corruption Blocked . | . . . Overload Shots . | . . . Overflow Damage . | . . . Projectiles . | . . . Explosions . | . . . Melee . | . . . Knockbacks . | . . . Impact . | . . . Kinetic . | . . . Secondary . | . . . Self-Inflicted Damage . | . . . Shots . | . . . Rammed . | . . . Targets Rammed . | . . . Kicked . | . . . Crushed . | . . . Highest Temperature 318 | . 318 105 Average Temperature 88 | . 147 48 Received Heat Transfer 105 | . 12 93 Siege Activations . | . . . Martial Activations . | . . . Shielding Activations . | . . . Robots Disrupted . | . . . Combat Hostiles . | . . . Robots Corrupted . | . . . Combat Hostiles . | . . . Parts Fried . | . . . Impact Corruptions . | . . . Robots Melted . | . . . Combat Hostiles . | . . . Parts Melted 3 | . 2 1 Heat Transferred 851 | . 333 518 Parts Sabotaged . | . . . Parts Stolen . | . . . Parts Stripped . | . . . Power Chain Reactions . | . . . Alert | -11 -10 -10 ------- Run | Yrd Mat Min Maximum Alert Level . | . . . Low Security (%) 100 | 100 100 100 Level 1 . | . . . Level 2 . | . . . Level 3 . | . . . Level 4 . | . . . Level 5 . | . . . High Security . | . . . Max Security . | . . . Peak Influence 106 | . 106 85 Initial 10 | . . 10 Average 25 | . 24 31 Influence Increases 436 | . 191 245 Destroy 0b10 Robot/C 340 | . 140 200 Destroy 0b10 Robot/NC 5 | . 5 . Destroy Leader 72 | . 32 40 Allied During Kill 5 | . . 5 Successful Hack 14 | . 14 . Influence Decreases 411 | . 163 248 Entered New Map 18 | . . 18 Time Decay 303 | . 153 150 Lost Part 70 | . 10 60 Lost Ally 20 | . . 20 Squads Dispatched 3 | . 2 1 Investigation . | . . . Extermination . | . . . Reinforcement 2 | . 2 . Assault 1 | . . 1 Garrison . | . . . Intercept . | . . . Searches Triggered . | . . . Construction Impeded . | . . . Haulers Reinforced . | . . . Active Scanning Responses . | . . . Cargo Convoy Interrupts . | . . . Stealth | -11 -10 -10 --------- Run | Yrd Mat Min Distress Signals 1 | . 1 . Communications Jammed . | . . . Distress Signals . | . . . Times Spotted 22 | . 11 11 Peak Tracking Total 7 | . 7 5 Tactical Retreats . | . . . Traps | -11 -10 -10 ------- Run | Yrd Mat Min Traps Triggered . | . . . Indirectly . | . . . Trap Hack Attempts . | . . . Triggered . | . . . Disarmed . | . . . Reprogrammed . | . . . Reused . | . . . Traps Extracted . | . . . Installed . | . . . Triggered . | . . . Machines | -11 -10 -10 ---------- Run | Yrd Mat Min Machines Disabled . | . . . Max in Single Turn . | . . . Machines Repaired . | . . . Machines Dismantled . | . . . Machines Sabotaged . | . . . Overloaded Fab Kills . | . . . Hacking | -11 -10 -10 --------- Run | Yrd Mat Min Machines Accessed 3 | . 3 . Terminals 2 | . 2 . Fabricators . | . . . Repair Stations . | . . . Recycling Units 1 | . 1 . Scanalyzers . | . . . Garrison Access . | . . . Total Hacks 7 | . 7 . Successful 3 | . 3 . Failed 4 | . 4 . Catastrophic . | . . . Database Lockouts . | . . . Manual . | . . . Terminals 5 | . 5 . Fabricators . | . . . Repair Stations . | . . . Recycling Units 2 | . 2 . Scanalyzers . | . . . Garrison Access . | . . . Terminal Hacks 1 | . 1 . Hauler Manifests 1 | . 1 . Fabricator Hacks . | . . . Repair Station Hacks . | . . . Recycling Unit Hacks 2 | . 2 . Report Inventory 1 | . 1 . Retrieve Components 1 | . 1 . Scanalyzer . | . . . Garrison Access Hacks . | . . . Unauthorized Hacks . | . . . Terminals . | . . . Fabricators . | . . . Repair Stations . | . . . Recycling Units . | . . . Scanalyzers . | . . . Garrison Access . | . . . Data Cores Recovered . | . . . Used . | . . . Hacking Detections 2 | . 2 . Full Trace Events 1 | . 1 . Feedback Events . | . . . Feedback Blocked . | . . . Robot Schematics Acquired . | . . . Robots Built . | . . . Authchips . | . . . Time . | . . . Total Robot Build Rating . | . . . Part Schematics Acquired . | . . . Parts Built . | . . . Authchips . | . . . Time . | . . . Total Part Build Rating . | . . . Part Studies Acquired . | . . . Parts Repaired . | . . . Time . | . . . Parts Recycled . | . . . Recycled Matter . | . . . Retrieved Matter . | . . . Retrieved Components 1 | . 1 . Parts Scanalyzed . | . . . Part Schematics Acquired . | . . . Parts Damaged . | . . . Bothacking | -11 -10 -10 ------------ Run | Yrd Mat Min Used RIF Installer . | . . . Robots Hacked . | . . . Non-combat . | . . . Combat . | . . . Robot Hacks Applied . | . . . Relay Couplers Released . | . . . Fabnet Peak Effective % . | . . . Robots Rewired . | . . . Allies Hacked . | . . . Hacks Repelled . | . . . Allies | -11 -10 -10 -------- Run | Yrd Mat Min Total Allies 1 | . . 1 Largest Group 1 | . . 1 Highest-Rated Group 31 | . . 31 Highest-Rated Ally 31 | . . 31 Total Orders . | . . . Ally Attacks 14 | . . 14 Total Damage 187 | . . 187 Kills 3 | . . 3 Allies Corrupted . | . . . Allies Melted . | . . . Intel | -11 -10 -10 ------- Run | Yrd Mat Min Active Infowar (turns) 961 | . 609 352 Structural 961 | . 609 352 Robot Analysis Total . | . . . Derelict Logs Recovered . | . . . Drone Launches . | . . . Drone Recoveries . | . . . Exploration | -11 -10 -10 ------------- Run | Yrd Mat Min Turns Passed 1277 | 78 809 390 Spaces Moved 612 | 59 406 147 Core 9 | 9 . . Treads . | . . . Legs 603 | 50 406 147 Wheels . | . . . Hover . | . . . Flight . | . . . Fastest Speed 50 | 50 120 190 Average Speed 172 | 109 175 190 Slowest Speed 190 | 120 190 190 Overloaded Moves . | . . . Propulsion Burnouts . | . . . Robots Hopped . | . . . Potential Cave-ins . | . . . Cave-ins Triggered . | . . . Exploration Rate (%) 34 | 4 52 47 Regions Visited 2 Branch Regions 1 Pre-discovered Areas . | . . . Known Exits Taken . | . . . Unknown Exits Taken 2 | 1 1 . Scrap Searched 2 | . . 2 Spaces Dug . | . . . Terrain Destroyed . | . . . Melee . | . . . Projectile . | . . . AOE . | . . . Terrain Rammed . | . . . Walls Destroyed . | . . . Machines Disabled . | . . . Actions | -11 -10 -10 --------- Run | Yrd Mat Min Total 754 | 69 467 218 Wait 51 | . 11 40 Move 610 | 58 405 147 Hop . | . . . Pick Up 14 | 3 9 2 Fast Attach 10 | 7 3 . Attach 6 | . 4 2 Detach 6 | 1 5 . Swap 6 | . 1 5 Drop 4 | . 2 2 Fire 40 | . 20 20 Melee 7 | . 7 . Ram . | . . . Kick . | . . . Crush . | . . . Escape Stasis . | . . . Rewire . | . . . Trap . | . . . Miscellaneous . | . . . Route ------- -11/Scrapyard -10/Materials (discovered 2 exits: [*Mat] / [*Min]) -10/Mines (discovered 1 exit: [*Mat]) History --------- Turn | Location | Event 29 | -11/Scrapyard | Discovered new exit (range 15) 79 | -11/Scrapyard | Entered Materials 255 | -10/Materials | Discovered new exit (range 15) 300 | -10/Materials | Build established: Mutant 366 | -10/Materials | Discovered new exit (range 12) 888 | -10/Materials | Entered Mines 945 | -10/Mines | Core integrity fell below 50% 1159 | -10/Mines | Discovered new exit (range 14) 1181 | -10/Mines | Met a Derelict testing a Signal Generator 1229 | -10/Mines | Assembled infested the area 1270 | -10/Mines | Core integrity fell below 20% 1278 | -10/Mines | Destroyed by D-53 Grenadier with Mini Grenade Launcher Last Messages --------------- 01242_ D-53 Grenadier unfolds itself. 01246_ G-34 Mercenary destroyed. 01250_ G-47 Trooper destroyed. 01254_ Acquired 23 matter. 01257_ Acquired 3 matter. 01259_ G-34 Mercenary destroyed. 01260_ M-13 Machinist destroyed. 01262_ YC-DPW(g) destroyed. 01266_ D-53 Grenadier destroyed. 01267_ Assault Rifle destroyed. 01269_ Searching scrap... 01269_ Found Targeting Computer. 01269_ Found Ion Engine. 01269_ Found 32 Matter. 01270_ HV Slug penetrates Wall. 01272_ Med. Laser destroyed. 01274_ Lgt. Nuclear Core destroyed. 01274_ Aluminum Leg destroyed. 01275_ The unstable cave ceiling collapses. 01278_ Aluminum Leg destroyed. Map ----- +----------------------------------------------------+ | #????????????????????????????????????????????????? | | #????????????????????????????????????????????????? | | #????????????????????????????????????????????????? | | #????????????????????????????????????????????????? | | #????????????????????????????????????????????????? | | #????????????????????????????????????????????????? | | #????????????????????????????????????????????????? | | ?????????????????????????????????????????????????? | | ?????????????????????????????????????????????????? | | ?????????????????????????????????????????????????? | | ?????????????????????????????????????????????????? | | ????????????######???????????????????????????????? | | ???????????## #####?????????????????????????????? | | ???????????# ###?????????????????????????????? | | ???????????# ##?????????????????????????????? | | ???????????# ###????????????????????????????? | | ???????????# ####???????????????????????????? | | ????????????# ####?????????????#????????????? | | ?????#####??# ###??????????? #????????????? | | ????#######??# #####??????? ?????????????? | | ????### ####?# ## ###???? ??????????????? | | ????## ##### #?? """??????????????? | | ????## # #? """??????????????? | | ????### # = # """ ????????? | | ?????### [ r #???????????? | | ?????### %=!%* @ #????????????? | | ????#### ## =! ##????????????? | | ####### ### % d ## ##?????????????? | | ###### ### #?? #??????????????? | | ## ## #########??? #??????????????? | | # ######???????? ##??????????????? | | # """ "% ##?????????##???????????????? | | ## """ #### ##??????????????????????????? | | ## """ #### ##??????????????????????????? | | ## # #### ##??????????????????????????? | | ## # ##??????????????????????????? | | # ###?????????????????????????? | | #### ##### ####????????????????????????? | | ## ###### ##### ###????????????????????????? | | ########## ####?## ##????????????????????????? | | #####??#########?## ##????????????????????????? | | ????????######???## ###???????????????????????? | | ?????????????????### < ##???????????????????????? | | ?????????????????### ##???????????????????????? | | ??????????????????# ##???????????????????????? | | ???????????????????& ##???????????????????????? | | ??????????????????? ##???????????????????????? | | ??????????????????? ###???????????????????????? | | ??????????????????? ###???????????????????????? | | ??????????????????# ###????????????????????????? | +----------------------------------------------------+ Best States ------------- Heat Dissipation 25 Energy Generation 14 Energy Capacity 250 Matter Stores 300 Matter Capacity 300 Sight Range 16 Terrain Scan Density 10 Evasion (%) 55 Item Schematics ----------------- None Robot Schematics ------------------ None Fabricated ------------ Nothing Repaired ---------- Nothing Studied --------- None Alien Tech Used ----------------- None Achievements -------------- None Challenges ------------ None Game ------ Seed ShrapnelTransportCapacitor Manual? 0 Play Time 00:14:52 Cumulative 15.9 hours Start 2026.04.14 @ 00:43:58 End 2026.04.14 @ 00:54:58 Sessions 1 Manual Loads 0 Difficulty Rogue Special Mode None Game No. 28 Rogue 28 Adventurer 0 Explorer 0 Win Type - Total 0 Types 0/0/0/0/0/0/0/0/0/0 Lore% 15 Gallery% 14 Achievement% 10 Wizard Run 0 Options --------- Layout 1 ASCII 0 Keyboard 1 Movement Arrows Keybinds 0 Fullscreen 2 Font 24/Smallcaps Map View 50x35 Zoom Use 0% Tactical HUD 1 Map Filters NONE Filters NONE Steam 1 RUN: 71657b8b-fba5-4ecd-b9da-73ae5056526f